Cogmind - Beta 10.2 @@@ ROGUE MODE // 2021.02.01 @ 12:35:19 Player: Dendrocnid Result: Destroyed by B-36 Bruiser with Hammer Performance ------------- Evolutions (0) 0 Regions Visited (4) 800 Robots Destroyed (7) 35 Value Destroyed (225) 225 Prototype IDs (24) 480 Alien Tech Used (0) 0 Bonus (374) 374 TOTAL SCORE: 1914 Bonus ------- Follower Combat Kills 74 Aligned with FarCom 300 Cogmind --------- Core Integrity 0/250 Matter 300/300 Energy 100/100 System Corruption 0% Temperature Cool (0) Movement Core (600) Ox11 Location -9/Mines Parts ------- > --- POWER (1) -------- (None) > --- PROPULSION (2) --- (None) > --- UTILITY (2) ------ High-capacity Storage Unit Thief Drone Bay (0/3) > --- WEAPON (2) ------- (None) > --- INVENTORY (12) --- Ion Engine Light Ion Engine Fission Core Improved Heat Sink Improved Heat Sink Improved Heat Sink Humpback Light Armor Plating Makeshift Armor Plating Supersonic Drone Bay (1/1) Peak State ------------ > --- POWER ------------ Ion Engine > --- PROPULSION ------- Wheel Compact Wheel > --- UTILITY ---------- High-capacity Storage Unit Thief Drone Bay > --- WEAPON ----------- EM Pulse Gun Medium Laser > --- INVENTORY -------- Light Ion Engine Fission Core Aluminum Leg Aluminum Leg Heat Sink Small Laser AWS/Autocannon [Rating: 17] Favorites ----------- Power Ion Engine Engine Ion Engine Propulsion Aluminum Leg Leg Aluminum Leg Wheel Compact Wheel Utility Thief Drone Bay Device Thief Drone Bay Storage High-capacity Storage Unit Weapon EM Pulse Gun Energy Gun EM Pulse Gun Energy Cannon Beam Cannon Build | -11 -10 -10 -10 -9 ------- Run | Scr Mat Min Exi Min Slots Evolved . | . . . . . Power . | . . . . . Propulsion . | . . . . . Utility . | . . . . . Weapon . | . . . . . Parts Attached 15 | 6 1 1 3 4 Power 2 | 1 . . . 1 Engine 2 | 1 . . . 1 Core . | . . . . . Reactor . | . . . . . Propulsion 6 | 2 1 . 2 1 Treads . | . . . . . Leg 3 | 2 1 . . . Wheel 3 | . . . 2 1 Hover . | . . . . . Flight . | . . . . . Utility 3 | 1 . 1 1 . Device 1 | . . 1 . . Storage 2 | 1 . . 1 . Processor . | . . . . . Hackware . | . . . . . Protection . | . . . . . Artifact . | . . . . . Weapon 4 | 2 . . . 2 Energy Gun 3 | 2 . . . 1 Energy Cannon 1 | . . . . 1 Ballistic Gun . | . . . . . Ballistic Cannon . | . . . . . Launcher . | . . . . . Special Weapon . | . . . . . Impact Weapon . | . . . . . Slashing Weapon . | . . . . . Piercing Weapon . | . . . . . Special Melee Weapon . | . . . . . Unidentified Prototypes 1 | . . 1 . . Parts Lost 7 | . . . . 7 Power 1 | . . . . 1 Propulsion 3 | . . . . 3 Utility . | . . . . . Weapon 3 | . . . . 3 Highest Loss Streak 7 | . . . . 7 Average Slot Usage (%) 95 | . 85 98 100 94 Engine 13 | . 14 14 14 13 Leg 11 | . 28 28 7 . Wheel 15 | . . . 20 26 Device 11 | . . 12 14 14 Storage 14 | . 14 14 14 14 Energy Gun 24 | . 28 28 28 19 Energy Cannon 2 | . . . . 6 Naked Turns . | . . . . . Heaviest Build 48 | 13 13 17 45 48 Greatest Support 26 | 20 20 20 26 26 Greatest Overweight (x) 11 | 1 . . 2 11 Average Overweight (x) . | . . . . 1 Largest Inventory Capacity 12 | 6 6 6 12 12 Average Capacity 9 | 5 6 6 10 12 Most Carried 12 | 6 6 6 10 12 Average Carried 7 | 3 6 5 6 10 Final Capacity 12 | 6 6 6 12 12 Final Carried 11 | 6 6 5 9 11 Class Distribution -------------------- 100% | Mutant Dominant Class ---------------- Mutant | -10/Materials Mutant | -10/Mines Mutant | -10/Exiles Mutant | -9/Mines Resources | -11 -10 -10 -10 -9 ----------- Run | Scr Mat Min Exi Min Matter Collected 330 | 221 39 20 . 50 Remotely . | . . . . . Salvage Created 199 | . 142 13 . 44 Parts 9 | . 8 1 . . Haulers Intercepted . | . . . . . Recyclers Shooed . | . . . . . Parts Field Recycled . | . . . . . Retrieved Matter . | . . . . . Parts Self-Destructed . | . . . . . Prevented . | . . . . . Kills | -11 -10 -10 -10 -9 ------- Run | Scr Mat Min Exi Min Combat Hostiles Destroyed 6 | . 3 1 . 2 Guns 5 | . 3 1 . 1 Cannons 1 | . . . . 1 Classes Destroyed 4 | . 2 1 . 1 Watcher 1 | . 1 . . . Swarmer 1 | . . 1 . . Grunt 4 | . 3 . . 1 Demolisher 1 | . . . . 1 Best Kill Streak 2 | . 2 1 . 1 Combat Bots Only 2 | . 2 1 . 1 Max Kills in Single Turn 1 | . 1 1 . 1 Gunslinging . | . . . . . Exploded . | . . . . . Melee . | . . . . . Uniques/NPCs Destroyed . | . . . . . Combat | -11 -10 -10 -10 -9 -------- Run | Scr Mat Min Exi Min Damage Taken 905 | . 145 . . 760 Core 261 | . 22 . . 239 Absorbed by Shields . | . . . . . Core Remaining (%) 100 | 100 . . . . Volleys Fired 32 | . 17 1 . 14 Largest 2 | . 2 2 . 2 Hottest 100 | . 90 90 . 100 Shots Fired 59 | . 34 2 . 23 Gun 54 | . 34 2 . 18 Cannon 5 | . . . . 5 Launcher . | . . . . . Special . | . . . . . Kinetic . | . . . . . Thermal 34 | . 17 1 . 16 Explosive . | . . . . . Electromagnetic 25 | . 17 1 . 7 Robot Hit Streak 7 | . 7 . . 3 Robot Miss Streak 7 | . 2 1 . 7 Penetration Max . | . . . . . Secondary Targets 1 | . 1 . . . Max Gunslinging Chain 1 | . 1 . . . Shots Hit Robots 30 | . 21 . . 9 Core Hits 14 | . 7 1 . 6 Critical Hits . | . . . . . Critical Kills . | . . . . . Critical Parts Destroyed . | . . . . . Melee Attacks . | . . . . . Impact . | . . . . . Slashing . | . . . . . Piercing . | . . . . . Sneak Attacks . | . . . . . Combat Hostiles . | . . . . . Follow-up Attacks . | . . . . . Damage Inflicted 498 | . 368 12 . 118 Guns 411 | . 299 12 . 100 Cannons 18 | . . . . 18 Explosions 69 | . 69 . . . Melee . | . . . . . Ramming . | . . . . . Kinetic . | . . . . . Thermal 257 | . 192 . . 65 Explosive . | . . . . . Electromagnetic 241 | . 176 12 . 53 Impact . | . . . . . Slashing . | . . . . . Piercing . | . . . . . Highest Corruption . | . . . . . Average Corruption . | . . . . . Corruption Purged . | . . . . . Overload Shots . | . . . . . Overflow Damage . | . . . . . Projectiles . | . . . . . Explosions . | . . . . . Melee . | . . . . . Knockbacks . | . . . . . Impact . | . . . . . Kinetic . | . . . . . Secondary . | . . . . . Self-Inflicted Damage . | . . . . . Shots . | . . . . . Rammed . | . . . . . Targets Rammed . | . . . . . Kicked . | . . . . . Crushed . | . . . . . Highest Temperature 276 | . 276 30 . 133 Average Temperature 79 | . 88 18 . 71 Received Heat Transfer 168 | . 78 . . 90 Siege Activations . | . . . . . Robots Corrupted . | . . . . . Combat Hostiles . | . . . . . Parts Fried . | . . . . . Impact Corruptions . | . . . . . Robots Melted . | . . . . . Combat Hostiles . | . . . . . Parts Melted 1 | . 1 . . . Heat Transferred 643 | . 470 . . 173 Parts Sabotaged . | . . . . . Parts Stolen . | . . . . . Parts Stripped . | . . . . . Power Chain Reactions 1 | . 1 . . . Missiles Intercepted . | . . . . . Alert | -11 -10 -10 -10 -9 ------- Run | Scr Mat Min Exi Min Peak Influence 167 | . 167 124 . 50 Initial 64 | . . 64 . . Average 53 | . 88 100 . 21 Maximum Alert Level . | . . . . . Low Security (%) 100 | 100 100 100 . 100 Level 1 . | . . . . . Level 2 . | . . . . . Level 3 . | . . . . . Level 4 . | . . . . . Level 5 . | . . . . . High Security . | . . . . . Max Security . | . . . . . Squads Dispatched 2 | . 2 . . . Investigation 1 | . 1 . . . Extermination . | . . . . . Reinforcement 1 | . 1 . . . Assault . | . . . . . Garrison . | . . . . . Intercept . | . . . . . Construction Impeded . | . . . . . Haulers Reinforced . | . . . . . Stealth | -11 -10 -10 -10 -9 --------- Run | Scr Mat Min Exi Min Distress Signals 1 | . 1 . . . Communications Jammed . | . . . . . Distress Signals . | . . . . . Times Spotted 22 | . 11 3 . 8 Peak Tracking Total 4 | . 3 1 . 4 Tactical Retreats 1 | . . . . 1 Traps | -11 -10 -10 -10 -9 ------- Run | Scr Mat Min Exi Min Traps Triggered 1 | . 1 . . . Indirectly . | . . . . . Trap Hack Attempts . | . . . . . Triggered . | . . . . . Disarmed . | . . . . . Reprogrammed . | . . . . . Reused . | . . . . . Traps Extracted . | . . . . . Installed . | . . . . . Triggered . | . . . . . Exploded 2 | . . . 2 . Machines | -11 -10 -10 -10 -9 ---------- Run | Scr Mat Min Exi Min Machines Disabled 1 | . 1 . . . Max in Single Turn 1 | . 1 . . . Machines Sabotaged . | . . . . . Garrisons Compromised . | . . . . . Overloaded Fab Kills . | . . . . . Fab Network Shutdowns . | . . . . . Hacking | -11 -10 -10 -10 -9 --------- Run | Scr Mat Min Exi Min Machines Accessed 4 | . 1 1 2 . Terminals 1 | . 1 . . . Fabricators . | . . . . . Repair Stations . | . . . . . Recycling Units . | . . . . . Scanalyzers . | . . . . . Garrison Access . | . . . . . Total Hacks 5 | . 2 1 2 . Successful 3 | . . 1 2 . Failed 2 | . 2 . . . Catastrophic . | . . . . . Database Lockouts . | . . . . . Manual 3 | . 2 . 1 . Terminals 2 | . 2 . . . Fabricators . | . . . . . Repair Stations . | . . . . . Recycling Units . | . . . . . Scanalyzers . | . . . . . Garrison Access . | . . . . . Terminal Hacks 3 | . . 1 2 . Record 1 | . . . 1 . Open Door 1 | . . 1 . . EX-Prototype ID Bank 1 | . . . 1 . Fabricator Hacks . | . . . . . Repair Station Hacks . | . . . . . Recycling Unit Hacks . | . . . . . Scanalyzer . | . . . . . Garrison Access Hacks . | . . . . . Unauthorized Hacks . | . . . . . Terminals . | . . . . . Fabricators . | . . . . . Repair Stations . | . . . . . Recycling Units . | . . . . . Scanalyzers . | . . . . . Garrison Access . | . . . . . Data Cores Recovered . | . . . . . Used . | . . . . . Hacking Detections 1 | . 1 . . . Full Trace Events . | . . . . . Feedback Events . | . . . . . Feedback Blocked . | . . . . . Robot Schematics Acquired . | . . . . . Robots Built . | . . . . . Matter . | . . . . . Time . | . . . . . Total Robot Build Rating . | . . . . . Part Schematics Acquired . | . . . . . Parts Built . | . . . . . Matter . | . . . . . Time . | . . . . . Total Part Build Rating . | . . . . . Parts Repaired . | . . . . . Time . | . . . . . Parts Recycled . | . . . . . Recycled Matter . | . . . . . Retrieved Matter . | . . . . . Retrieved Components . | . . . . . Parts Scanalyzed . | . . . . . Part Schematics Acquired . | . . . . . Parts Damaged . | . . . . . Bothacking | -11 -10 -10 -10 -9 ------------ Run | Scr Mat Min Exi Min Used RIF Installer . | . . . . . Robots Hacked . | . . . . . Non-combat . | . . . . . Combat . | . . . . . Robot Hacks Applied . | . . . . . Relay Couplers Released . | . . . . . Robots Rewired . | . . . . . Allies Hacked . | . . . . . Hacks Repelled . | . . . . . Allies | -11 -10 -10 -10 -9 -------- Run | Scr Mat Min Exi Min Total Allies 3 | . . 3 . . Largest Group 3 | . . 3 2 2 Highest-Rated Group 40 | . . 40 32 32 Highest-Rated Ally 16 | . . 16 16 16 Total Orders . | . . . . . Ally Attacks 23 | . . 4 . 19 Total Damage 199 | . . 29 . 170 Kills 5 | . . 2 . 3 Allies Corrupted 1 | . . . . 1 Allies Melted . | . . . . . Intel | -11 -10 -10 -10 -9 ------- Run | Scr Mat Min Exi Min Robot Analysis Total . | . . . . . Derelict Logs Recovered 1 | . . . . 1 Drone Launches 4 | . . . . 4 Drone Recoveries 1 | . . . . 1 Exploration | -11 -10 -10 -10 -9 ------------- Run | Scr Mat Min Exi Min Turns Passed 1758 | 81 283 257 563 574 Spaces Moved 1446 | 55 191 206 508 486 Core 8 | 5 . . . 3 Treads . | . . . . . Legs 559 | 50 191 206 112 . Wheels 879 | . . . 396 483 Hover . | . . . . . Flight . | . . . . . Fastest Speed 50 | 50 120 120 100 100 Average Speed 109 | 121 120 120 106 103 Slowest Speed 600 | 150 120 120 180 600 Overloaded Moves . | . . . . . Propulsion Burnouts . | . . . . . Robots Hopped . | . . . . . Cave-ins Triggered . | . . . . . Exploration Rate (%) 50 | 4 37 56 90 63 Regions Visited 4 Branch Regions 3 Pre-discovered Areas 2 | . . . . 2 Known Exits Taken . | . . . . . Unknown Exits Taken 4 | 1 1 1 1 . Scrap Searched 2 | . . 1 . 1 Spaces Dug . | . . . . . Terrain Destroyed 3 | . 3 . . . Melee . | . . . . . Projectile . | . . . . . AOE 3 | . 3 . . . Terrain Rammed . | . . . . . Walls Destroyed . | . . . . . Machines Disabled . | . . . . . Actions | -11 -10 -10 -10 -9 --------- Run | Scr Mat Min Exi Min Total 1555 | 66 211 214 529 535 Wait 35 | . 2 4 7 22 Move 1442 | 54 190 205 507 486 Hop . | . . . . . Pick Up 19 | 6 . 1 7 5 Fast Attach 9 | 6 . 1 . 2 Attach 1 | . . . . 1 Detach . | . . . . . Swap 5 | . 1 . 3 1 Drop 12 | . 1 2 5 4 Fire 32 | . 17 1 . 14 Melee . | . . . . . Ram . | . . . . . Kick . | . . . . . Crush . | . . . . . Escape Stasis . | . . . . . Rewire . | . . . . . Trap . | . . . . . Miscellaneous . | . . . . . Route ------- -11/Scrapyard -10/Materials -10/Mines -10/Exiles -9/Mines History --------- Turn | Location | Event 32 | -11/Scrapyard | Discovered new exit (range 14) 82 | -11/Scrapyard | Entered Materials 195 | -10/Materials | Discovered new exit (range 13) 309 | -10/Materials | Build established: Mutant 365 | -10/Materials | Entered Mines 375 | -10/Mines | Found the Drone Emporium 380 | -10/Mines | Found Prototype Device 380 | -10/Mines | Identified Thief Drone Bay 455 | -10/Mines | Assisted by bots powering up and referring to "LRC-V3" 611 | -10/Mines | Deemed a non-threat by the Exiles lab entrance 611 | -10/Mines | Discovered new exit (range 5) 622 | -10/Mines | Entered Exiles 622 | -10/Exiles | Accompanied by 2 allies 656 | -10/Exiles | Met 8R-AWN 675 | -10/Exiles | Met EX-HEX 816 | -10/Exiles | Met EX-DEC 848 | -10/Exiles | Visited The Gauntlet 981 | -10/Exiles | Met EX-BIN 1009 | -10/Exiles | Aligned with FarCom system 1010 | -10/Exiles | Given EX-Vault access code 1035 | -10/Exiles | Opened EX-Vault 1042 | -10/Exiles | Found AWS/Autocannon 1047 | -10/Exiles | Found XL Autogun Array 1055 | -10/Exiles | Found Supersonic Drone Bay 1077 | -10/Exiles | Warned to stay clear of 0b10 Research branches 1080 | -10/Exiles | Exiles lab attacked by MAIN.C 1166 | -10/Exiles | Discovered new exit (range 14) 1185 | -10/Exiles | Left Exiles lab with Supersonic Drone Bay 1185 | -10/Exiles | Entered Mines 1185 | -9/Mines | Accompanied by 2 allies 1200 | -9/Mines | Learned location of Storage (-7) 1414 | -9/Mines | Joined a pair of Derelicts in attacking an 0b10 outpost 1575 | -9/Mines | Assembled infested the area 1580 | -9/Mines | Assisted by a Guerilla fighting off Assembled 1716 | -9/Mines | Core integrity fell below 50% 1738 | -9/Mines | Core integrity fell below 20% 1741 | -9/Mines | Found a hidden stash of uninstalled traps 1759 | -9/Mines | Destroyed by B-36 Bruiser with Hammer Last Messages --------------- 01693_ D-53 Grenadier destroyed. 01695_ Thief Drone destroyed. 01697_ Wheel destroyed. 01697_ EM Pulse Gun destroyed. 01705_ The unstable cave ceiling collapses. 01706_ T-07 Excavator destroyed. 01708_ The unstable cave ceiling collapses. 01708_ Beam Cannon destroyed. 01710_ Imp. Ion Engine destroyed. 01719_ Sml. Laser destroyed. 01719_ T-07 Excavator destroyed. 01721_ The unstable cave ceiling collapses. 01725_ Acquired Wheel. 01728_ The unstable cave ceiling collapses. 01731_ Wheel destroyed. 01733_ The unstable cave ceiling collapses. 01733_ U-05 Engineer lays Concrete. 01734_ U-05 Engineer builds a Wall. 01741_ A stash of uninstalled traps is collected here! 01742_ Com. Wheel destroyed. Map ----- +----------------------------------------------------+ | | | | | | | | | | | | | | | | | | | ?????????????????????????????????????????????????? | | ?????????????????????????????????????????????????? | | ?????????????????????????????????????????????????? | | ?????????????????????????????????????????????????? | | ?????????????????????????????????????????????????? | | ?????????????????????????????????????????????????? | | ?????????????????????????????????????????????????? | | ?????????????????????????????????????????????????? | | ?????????????????????????????????????????????????? | | ????????????????????????####??????????######?????? | | ???????????????????????? #?????????## ##????? | | ???????????????????????? #?????????? ?????? | | ????????????????????????# #?????????? ??????? | | ????????????????????????# #?????????## ???????? | | ????????????????????????# #????????## ########? | | ????????????????????????# #??????### # ## | | ??????????????????????###@ #????### # # | | ?????????????????????## gb #????# | | ?????????????????????# #??### # | | ?????????????????????# g&##??# # | | ?????????????????????# &t&##??# | | ?????????????????????# & ##?# d # | | ?????????????????????## ### """" | | ??????????????????????## # """" | | ???????????????????????## ####### ## # """" | | ????????????????????????###### #?????###?## | | ?????????????????????????????# ##??????????# | | ?????????????????????????????# #???????????## | | ?????????????????????????????# #??????####??# | | ?????????????????????????????# #?????## ##?# | | ?????????????????????????????# #?????# #### # | | ?????????????????????????????# ?????## #### | | ?????????????????????????????# % ??????## ##? | | ?????????????????????????????# % #####??# """ #? | | ?????????????????????????????#% % #?## """ #? | | ?????????????????????????????#= # ## #?# """ ##? | | ?????????????????????????????#=! ?# #?## ##?? | | ?????????????????????????????# ##?# #??## ####??? | | ?????????????????????????????# #??# ##### ####### | | ?????????????????????????????# #??# ## # | | ????????????????????????????? ??#### ## ##### # | +----------------------------------------------------+ Best States ------------- Heat Dissipation 25 Energy Generation 12 Energy Capacity 265 Matter Stores 300 Matter Capacity 300 Sight Range 16 Terrain Scan Density 10 Evasion (%) 40 Item Schematics ----------------- None Robot Schematics ------------------ None Fabricated ------------ Nothing Alien Tech Used ----------------- None Achievements -------------- None Challenges ------------ None Game ------ Seed EnergyScatterRedistributor Manual? 0 Play Time 00:18:03 Cumulative 93.3 hours Start 2021.02.01 @ 12:15:25 End 2021.02.01 @ 12:35:19 Sessions 1 Manual Loads 0 Difficulty Rogue Special Mode None Game No. 164 Rogue 164 Adventurer 0 Explorer 0 Win Type - Total 0 Types 0/0/0/0/0/0/0/0/0 Lore% 27 Gallery% 47 Achievement% 38 Wizard Run 0 Options --------- ASCII 0 Keyboard 0 Movement Mouse Keybinds 0 Fullscreen 1 Font 14/SmallcapsGlow Map View 84x54 Tactical HUD 1 Map Filters NONE Filters NONE Steam 1 RUN: 8efd70a5-d6c1-4b3a-a74c-75122f60f7ef